[Event "MČR v rapid šachu družstev 2019"]
[Site "Teplice, Czech Republic"]
[Date "2019.09.15"]
[Round "7.19"]
[White "Hosnedl, Matyas"]
[Black "Kupka, Frantisek"]
[Result "1-0"]
[TimeControl "15 min. + 5s"]
[WhiteElo "1858"]
[BlackElo "2061"]

1. e4 {[%clk 00:15:09]} d6 {[%clk 00:15:06]} {[%emt 00:00:05]} 2. d4 {[%clk
00:15:11]} {[%emt 00:00:02]} e5 {[%clk 00:15:09]} {[%emt 00:00:02]} 3. Nf3
{[%clk 00:15:05]} {[%emt 00:00:11]} Nd7 {[%clk 00:15:04]} {[%emt 00:00:10]} 4.
Bc4 {[%clk 00:14:58]} {[%emt 00:00:12]} c6 {[%clk 00:15:07]} {[%emt 00:00:02]}
5. O-O {[%clk 00:14:36]} {[%emt 00:00:27]} Be7 {[%clk 00:14:38]} {[%emt
00:00:34]} 6. Re1 {[%clk 00:14:14]} {[%emt 00:00:27]} Ngf6 {[%clk 00:14:38]}
{[%emt 00:00:05]} 7. dxe5 {[%clk 00:14:11]} {[%emt 00:00:08]} dxe5 {[%clk
00:14:36]} {[%emt 00:00:07]} 8. Nbd2 {[%clk 00:13:48]} {[%emt 00:00:28]} b5
{[%clk 00:14:29]} {[%emt 00:00:12]} 9. Bb3 {[%clk 00:13:49]} {[%emt 00:00:03]}
a6 {[%clk 00:14:30]} {[%emt 00:00:05]} 10. c3 {[%clk 00:13:48]} {[%emt
00:00:07]} O-O {[%clk 00:14:30]} {[%emt 00:00:05]} 11. Nf1 {[%clk 00:13:51]}
{[%emt 00:00:02]} Qc7 {[%clk 00:14:27]} {[%emt 00:00:08]} 12. Ng3 {[%clk
00:13:30]} {[%emt 00:00:26]} Nc5 {[%clk 00:14:12]} {[%emt 00:00:20]} 13. Bc2
{[%clk 00:13:29]} {[%emt 00:00:05]} g6 {[%clk 00:13:49]} {[%emt 00:00:28]} 14.
Bh6 {[%clk 00:13:08]} {[%emt 00:00:26]} Rd8 {[%clk 00:13:36]} {[%emt 00:00:19]}
15. Qe2 {[%clk 00:13:11]} {[%emt 00:00:02]} Ng4 {[%clk 00:13:23]} {[%emt
00:00:17]} 16. Bg5 {[%clk 00:12:45]} {[%emt 00:00:30]} Bxg5 {[%clk 00:13:17]}
{[%emt 00:00:12]} 17. Nxg5 {[%clk 00:12:47]} {[%emt 00:00:03]} h6 {[%clk
00:12:59]} {[%emt 00:00:23]} 18. Nf3 {[%clk 00:12:45]} {[%emt 00:00:07]} Ne6
{[%clk 00:12:51]} {[%emt 00:00:13]} 19. Red1 {[%clk 00:11:28]} {[%emt
00:01:23]} Bb7 {[%clk 00:11:30]} {[%emt 00:01:25]} 20. h3 {[%clk 00:10:36]}
{[%emt 00:00:57]} Nf4 {[%clk 00:11:31]} {[%emt 00:00:04]} 21. Qe1 {[%clk
00:10:04]} {[%emt 00:00:36]} Nf6 {[%clk 00:11:28]} {[%emt 00:00:09]} 22. Ne2
{[%clk 00:09:30]} {[%emt 00:00:39]} N6h5 {[%clk 00:11:04]} {[%emt 00:00:28]} 23.
Nxf4 {[%clk 00:09:18]} {[%emt 00:00:18]} Nxf4 {[%clk 00:11:05]} {[%emt
00:00:04]} 24. Qe3 {[%clk 00:09:21]} {[%emt 00:00:02]} c5 {[%clk 00:10:42]}
{[%emt 00:00:28]} 25. Kh2 {[%clk 00:07:51]} {[%emt 00:01:34]} Kg7 {[%clk
00:10:41]} {[%emt 00:00:07]} 26. Nd2 {[%emt 00:00:57]} c4 {[%clk 00:10:28]}
{[%emt 00:00:17]} 27. a4 {[%clk 00:06:42]} {[%emt 00:00:23]} Bc6 {[%clk
00:09:48]} {[%emt 00:00:46]} 28. axb5 {[%clk 00:06:32]} {[%emt 00:00:15]} axb5
{[%clk 00:09:50]} {[%emt 00:00:02]} 29. b3 {[%clk 00:05:55]} {[%emt 00:00:42]}
cxb3 {[%clk 00:08:27]} {[%emt 00:01:28]} 30. Nxb3 {[%clk 00:05:48]} {[%emt
00:00:12]} Rxd1 {[%clk 00:08:04]} {[%emt 00:00:29]} 31. Rxd1 {[%clk 00:05:39]}
{[%emt 00:00:14]} Ra2 {[%clk 00:07:35]} {[%emt 00:00:33]} 32. Rd2 {[%clk
00:05:42]} {[%emt 00:00:02]} Ne6 {[%clk 00:06:39]} {[%emt 00:01:01]} 33. Bd1
{[%clk 00:04:29]} {[%emt 00:01:18]} Rxd2 {[%clk 00:06:31]} {[%emt 00:00:13]} 34.
Nxd2 {[%clk 00:04:33]} {[%emt 00:00:01]} Qd6 {[%clk 00:06:22]} {[%emt
00:00:13]} 35. Bb3 {[%clk 00:04:12]} {[%emt 00:00:26]} Nc5 {[%clk 00:06:20]}
{[%emt 00:00:08]} 36. Bc2 {[%clk 00:03:34]} {[%emt 00:00:44]} Ne6 {[%clk
00:06:01]} {[%emt 00:00:23]} 37. c4 {[%clk 00:02:25]} {[%emt 00:01:15]} Nd4
{[%clk 00:04:46]} {[%emt 00:01:19]} 38. Bd1 {[%clk 00:02:10]} {[%emt 00:00:21]}
b4 {[%clk 00:04:47]} {[%emt 00:00:04]} 39. Nb3 {[%clk 00:02:01]} {[%emt
00:00:14]} Nxb3 {[%clk 00:04:29]} {[%emt 00:00:22]} 40. Bxb3 {[%clk 00:02:04]}
{[%emt 00:00:02]} g5 {[%clk 00:03:49]} {[%emt 00:00:45]} 41. c5 {[%clk
00:02:00]} {[%emt 00:00:09]} Qf6 {[%clk 00:03:10]} {[%emt 00:00:44]} 42. g3
{[%clk 00:01:41]} {[%emt 00:00:24]} Qe7 {[%clk 00:02:36]} {[%emt 00:00:39]} 43.
Bd5 {[%clk 00:01:41]} {[%emt 00:00:05]} Qb7 {[%clk 00:02:32]} {[%emt 00:00:09]}
44. Qb3 {[%clk 00:01:38]} {[%emt 00:00:09]} Qb5 {[%clk 00:02:11]} {[%emt
00:00:26]} 45. Bxc6 {[%clk 00:01:39]} {[%emt 00:00:04]} Qxc6 {[%clk 00:02:12]}
{[%emt 00:00:04]} 46. Qxb4 {[%clk 00:01:43]} h5 {[%clk 00:01:55]} {[%emt
00:00:20]} 47. Qc4 {[%clk 00:01:46]} {[%emt 00:00:03]} g4 {[%clk 00:01:37]}
{[%emt 00:00:24]} 48. Qd5 {[%clk 00:01:20]} {[%emt 00:00:30]} Qf6 {[%clk
00:01:40]} {[%emt 00:00:02]} 49. Qd2 {[%clk 00:01:09]} {[%emt 00:00:17]} Kg6
{[%clk 00:01:34]} {[%emt 00:00:10]} 50. hxg4 {[%clk 00:01:12]} {[%emt
00:00:02]} hxg4 {[%clk 00:01:31]} {[%emt 00:00:08]} 51. Qe2 {[%clk 00:00:35]}
{[%emt 00:00:43]} Kg5 {[%clk 00:01:25]} {[%emt 00:00:10]} 52. Qe3+ {[%clk
00:00:39]} {[%emt 00:00:02]} Kg6 {[%clk 00:01:29]} 53. Kg2 {[%clk 00:00:37]}
{[%emt 00:00:07]} Qc6 {[%clk 00:01:25]} {[%emt 00:00:09]} 54. Qe2 {[%clk
00:00:25]} {[%emt 00:00:17]} Kg5 {[%clk 00:01:26]} {[%emt 00:00:04]} 55. Qd2+
{[%clk 00:00:27]} {[%emt 00:00:03]} Kg6 {[%clk 00:01:24]} {[%emt 00:00:07]} 56.
Qd6+ {[%clk 00:00:21]} {[%emt 00:00:10]} Qxd6 {[%clk 00:01:28]} {[%emt
00:00:02]} 57. cxd6 {[%clk 00:00:26]} Kf6 {[%clk 00:01:32]} 58. f4 {[%clk
00:00:30]} gxf3+ {[%clk 00:01:29]} {[%emt 00:00:09]} 59. Kxf3 {[%clk 00:00:35]}
{[%emt 00:00:01]} Ke6 {[%clk 00:01:33]} 60. Kg4 {[%clk 00:00:39]} {[%emt
00:00:01]} Kxd6 {[%emt 00:00:03]} 61. Kf5 {[%clk 00:00:42]} {[%emt 00:00:02]}
Ke7 {[%clk 00:01:24]} {[%emt 00:00:15]} 62. Kxe5 {[%clk 00:00:46]} {[%emt
00:00:01]} f6+ {[%clk 00:01:20]} {[%emt 00:00:09]} 63. Kf5 {[%clk 00:00:49]}
{[%emt 00:00:03]} Kf7 {[%clk 00:01:22]} {[%emt 00:00:02]} 64. g4 {[%clk
00:00:53]} {[%emt 00:00:01]} Ke7 {[%clk 00:01:23]} {[%emt 00:00:05]} 65. Kg6
{[%clk 00:00:57]} {[%emt 00:00:01]} Ke6 {[%clk 00:01:23]} {[%emt 00:00:05]} 66.
Kg7 {[%clk 00:00:59]} {[%emt 00:00:02]} Ke7 {[%clk 00:01:20]} {[%emt 00:00:08]}
67. Kg6 {[%clk 00:00:52]} {[%emt 00:00:12]} Ke6 {[%clk 00:01:24]} 68. Kg7
{[%clk 00:00:33]} {[%emt 00:00:25]} Ke7 {[%clk 00:01:27]} {[%emt 00:00:02]} 69.
Kg8 {[%clk 00:00:38]} Ke8 {[%clk 00:01:20]} {[%emt 00:00:13]} 70. Kh7 {[%clk
00:00:38]} {[%emt 00:00:05]} Kf7 {[%clk 00:01:13]} {[%emt 00:00:12]} 71. e5
{[%clk 00:00:42]} {[%emt 00:00:01]} Ke6 {[%clk 00:00:45]} {[%emt 00:00:32]} 72.
exf6 {[%clk 00:00:46]} {[%emt 00:00:01]} Kxf6 {[%clk 00:00:49]} 73. Kh6 {[%clk
00:00:50]} {[%emt 00:00:01]} Kf7 {[%clk 00:00:53]} {[%emt 00:00:01]} 74. g5
{[%clk 00:00:53]} {[%emt 00:00:03]} Kg8 {[%clk 00:00:54]} {[%emt 00:00:03]} 75.
Kg6 {[%clk 00:00:57]} {[%emt 00:00:02]} Kh8 {[%clk 00:00:54]} {[%emt 00:00:04]}
76. Kf7 {[%clk 00:01:01]} Kh7 {[%emt 00:00:01]} 77. g6 1-0

[Event "MČR v rapid šachu družstev 2019"]
[Site "Teplice, Czech Republic"]
[Date "2019.09.15"]
[Round "7.21"]
[White "Formanek, Martin"]
[Black "Wichs, Jakub"]
[Result "1-0"]
[TimeControl "15 min. + 5s"]
[WhiteElo "2185"]
[BlackElo "2090"]

1. e4 {[%clk 00:15:08]} {[%emt 00:00:02]} c5 {[%clk 00:15:07]} {[%emt
00:00:03]} 2. Nf3 {[%clk 00:15:10]} {[%emt 00:00:02]} d6 {[%clk 00:15:10]}
{[%emt 00:00:02]} 3. c3 {[%clk 00:15:14]} {[%emt 00:00:02]} Nf6 {[%clk
00:15:11]} {[%emt 00:00:04]} 4. Bd3 {[%clk 00:15:17]} {[%emt 00:00:02]} Nc6
{[%clk 00:15:13]} {[%emt 00:00:02]} 5. Bc2 {[%clk 00:15:18]} {[%emt 00:00:04]}
e6 {[%clk 00:15:05]} {[%emt 00:00:13]} 6. O-O {[%clk 00:15:18]} {[%emt
00:00:04]} Be7 {[%clk 00:15:08]} {[%emt 00:00:03]} 7. Re1 {[%clk 00:15:17]}
{[%emt 00:00:06]} O-O {[%clk 00:14:45]} {[%emt 00:00:28]} 8. d4 {[%clk
00:15:20]} {[%emt 00:00:02]} cxd4 {[%clk 00:14:20]} {[%emt 00:00:30]} 9. cxd4
{[%clk 00:15:23]} {[%emt 00:00:02]} Nb4 {[%clk 00:14:12]} {[%emt 00:00:13]} 10.
Bb3 {[%clk 00:15:22]} {[%emt 00:00:06]} d5 {[%clk 00:14:12]} {[%emt 00:00:05]}
11. e5 {[%clk 00:15:19]} {[%emt 00:00:09]} Ne4 {[%clk 00:14:14]} {[%emt
00:00:02]} 12. Nc3 {[%clk 00:15:18]} {[%emt 00:00:06]} Nxc3 {[%clk 00:14:04]}
{[%emt 00:00:15]} 13. bxc3 {[%clk 00:15:21]} {[%emt 00:00:02]} Nc6 {[%clk
00:14:02]} {[%emt 00:00:08]} 14. Bc2 {[%clk 00:15:08]} {[%emt 00:00:18]} Na5
{[%clk 00:13:33]} {[%emt 00:00:34]} 15. Qd3 {[%clk 00:14:56]} {[%emt 00:00:16]}
g6 {[%clk 00:13:36]} {[%emt 00:00:02]} 16. Bh6 {[%clk 00:14:51]} {[%emt
00:00:10]} Re8 {[%clk 00:13:36]} {[%emt 00:00:03]} 17. h3 {[%clk 00:14:15]}
{[%emt 00:00:43]} Bd7 {[%clk 00:13:25]} {[%emt 00:00:17]} 18. Nh2 {[%clk
00:13:57]} {[%emt 00:00:22]} a6 {[%clk 00:12:41]} {[%emt 00:00:50]} 19. Ng4
{[%clk 00:13:36]} {[%emt 00:00:26]} Bb5 {[%clk 00:12:27]} {[%emt 00:00:19]} 20.
Qf3 {[%clk 00:13:05]} {[%emt 00:00:35]} Rc8 {[%clk 00:11:11]} {[%emt 00:01:22]}
21. a4 {[%clk 00:12:53]} {[%emt 00:00:17]} Bd7 {[%clk 00:10:32]} {[%emt
00:00:43]} 22. g3 {[%clk 00:12:24]} {[%emt 00:00:34]} Rc4 {[%clk 00:08:33]}
{[%emt 00:02:05]} 23. h4 {[%clk 00:12:15]} {[%emt 00:00:13]} Rc7 {[%clk
00:03:43]} {[%emt 00:04:55]} 24. h5 {[%clk 00:11:44]} {[%emt 00:00:36]} Nc6
{[%clk 00:03:42]} {[%emt 00:00:06]} 25. Bb1 {[%clk 00:10:43]} {[%emt 00:01:07]}
Nb8 {[%clk 00:03:16]} {[%emt 00:00:31]} 26. Kg2 {[%clk 00:10:07]} {[%emt
00:00:40]} Bc6 {[%clk 00:03:08]} {[%emt 00:00:13]} 27. Bd2 {[%clk 00:09:40]}
{[%emt 00:00:32]} Rf8 {[%clk 00:02:23]} {[%emt 00:00:50]} 28. Rh1 {[%clk
00:08:53]} {[%emt 00:00:53]} Nd7 {[%clk 00:02:08]} {[%emt 00:00:20]} 29. Qe3
{[%clk 00:08:18]} {[%emt 00:00:40]} Re8 {[%clk 00:00:49]} {[%emt 00:01:24]} 30.
Nh6+ {[%clk 00:07:59]} {[%emt 00:00:23]} Kg7 {[%clk 00:00:40]} {[%emt
00:00:14]} 31. Nxf7 {[%clk 00:08:01]} {[%emt 00:00:03]} Kxf7 {[%clk 00:00:29]}
{[%emt 00:00:16]} 32. hxg6+ {[%clk 00:08:03]} {[%emt 00:00:03]} hxg6 {[%clk
00:00:08]} {[%emt 00:00:26]} 33. Rh7+ {[%clk 00:07:57]} {[%emt 00:00:11]} Kg8
{[%clk 00:00:09]} {[%emt 00:00:05]} 34. Qh6 {[%clk 00:07:57]} {[%emt 00:00:05]}
1-0

[Event "MČR v rapid šachu družstev 2019"]
[Site "Teplice, Czech Republic"]
[Date "2019.09.15"]
[Round "7.22"]
[White "Sulc, Jaromir"]
[Black "Kopta, Pavel"]
[Result "0-1"]
[TimeControl "15 min. + 5s"]
[WhiteElo "2000"]
[BlackElo "2200"]

1. e4 {[%clk 00:15:04]} {[%emt 00:00:06]} c5 {[%clk 00:15:08]} {[%emt
00:00:02]} 2. Nf3 {[%clk 00:15:08]} {[%emt 00:00:01]} d6 {[%clk 00:15:11]}
{[%emt 00:00:02]} 3. d4 {[%clk 00:15:12]} {[%emt 00:00:01]} cxd4 {[%clk
00:15:15]} 4. Nxd4 {[%clk 00:15:15]} {[%emt 00:00:02]} Nf6 {[%clk 00:15:19]}
{[%emt 00:00:01]} 5. Nc3 {[%clk 00:15:19]} {[%emt 00:00:01]} g6 {[%clk
00:15:22]} {[%emt 00:00:02]} 6. Be2 {[%clk 00:15:15]} {[%emt 00:00:09]} Bg7
{[%clk 00:15:23]} {[%emt 00:00:04]} 7. h4 {[%clk 00:15:16]} {[%emt 00:00:05]}
h5 {[%clk 00:15:07]} {[%emt 00:00:20]} 8. f3 {[%clk 00:14:59]} {[%emt
00:00:22]} Nc6 {[%clk 00:14:58]} {[%emt 00:00:13]} 9. Be3 {[%clk 00:14:56]}
{[%emt 00:00:09]} d5 {[%clk 00:12:59]} {[%emt 00:02:04]} 10. Bb5 {[%clk
00:10:23]} {[%emt 00:04:38]} O-O {[%clk 00:10:24]} {[%emt 00:02:39]} 11. Nxc6
{[%clk 00:08:05]} {[%emt 00:02:24]} bxc6 {[%clk 00:10:24]} {[%emt 00:00:05]} 12.
Bxc6 {[%clk 00:08:06]} {[%emt 00:00:03]} Rb8 {[%clk 00:10:27]} {[%emt
00:00:02]} 13. Bxd5 {[%clk 00:06:01]} {[%emt 00:02:10]} Nxd5 {[%clk 00:09:50]}
{[%emt 00:00:42]} 14. Qxd5 {[%clk 00:05:24]} {[%emt 00:00:48]} Rxb2 {[%clk
00:09:19]} {[%emt 00:00:41]} 15. O-O-O {[%clk 00:03:35]} {[%emt 00:01:53]} Qxd5
{[%clk 00:07:48]} {[%emt 00:01:36]} 16. Nxd5 {[%clk 00:03:35]} {[%emt
00:00:05]} Rxa2 {[%clk 00:06:58]} {[%emt 00:00:55]} 17. Nxe7+ {[%clk 00:02:44]}
{[%emt 00:00:57]} Kh7 {[%clk 00:06:59]} {[%emt 00:00:04]} 18. Kd2 {[%clk
00:02:35]} {[%emt 00:00:14]} Rd8+ {[%clk 00:06:33]} {[%emt 00:00:30]} 19. Nd5
{[%clk 00:02:22]} {[%emt 00:00:17]} Be6 {[%clk 00:05:59]} {[%emt 00:00:40]} 20.
Bg5 {[%clk 00:01:43]} {[%emt 00:00:44]} f6 {[%clk 00:05:08]} {[%emt 00:00:56]}
21. Bf4 {[%clk 00:01:18]} {[%emt 00:00:31]} Bxd5 {[%clk 00:03:22]} {[%emt
00:01:51]} 22. exd5 {[%clk 00:00:55]} {[%emt 00:00:28]} Rxd5+ {[%clk 00:03:21]}
{[%emt 00:00:05]} 23. Ke3 {[%clk 00:00:56]} {[%emt 00:00:04]} Rxd1 {[%clk
00:01:58]} {[%emt 00:01:28]} 24. Rxd1 {[%clk 00:01:00]} Rxc2 {[%clk 00:02:02]}
{[%emt 00:00:02]} 25. Ra1 {[%clk 00:00:57]} {[%emt 00:00:08]} g5 {[%clk
00:01:23]} {[%emt 00:00:45]} 26. Bb8 {[%clk 00:00:27]} {[%emt 00:00:34]} Rxg2
{[%clk 00:01:22]} {[%emt 00:00:06]} 27. hxg5 {[%clk 00:00:21]} {[%emt
00:00:10]} fxg5 {[%clk 00:01:25]} {[%emt 00:00:02]} 28. Rxa7 {[%clk 00:00:24]}
{[%emt 00:00:02]} Kg8 {[%clk 00:01:05]} {[%emt 00:00:26]} 29. Bd6 {[%clk
00:00:22]} {[%emt 00:00:07]} Rg1 {[%clk 00:00:54]} {[%emt 00:00:15]} 30. Rb7
{[%clk 00:00:19]} {[%emt 00:00:09]} Re1+ {[%clk 00:00:50]} {[%emt 00:00:08]} 31.
Kf2 {[%clk 00:00:21]} {[%emt 00:00:04]} Re6 {[%clk 00:00:51]} {[%emt 00:00:04]}
32. Bc5 {[%clk 00:00:17]} {[%emt 00:00:08]} Rc6 {[%clk 00:00:53]} {[%emt
00:00:03]} 33. Ba7 {[%clk 00:00:15]} {[%emt 00:00:07]} h4 {[%clk 00:00:51]}
{[%emt 00:00:08]} 34. Kg2 {[%clk 00:00:17]} {[%emt 00:00:03]} Rc3 {[%clk
00:00:46]} {[%emt 00:00:09]} 35. Bb8 {[%clk 00:00:15]} {[%emt 00:00:07]} Re3
{[%clk 00:00:38]} {[%emt 00:00:14]} 36. Ba7 {[%emt 00:00:05]} Rd3 {[%clk
00:00:32]} {[%emt 00:00:10]} 37. Bb8 {[%clk 00:00:14]} {[%emt 00:00:06]} Bf6
{[%clk 00:00:27]} {[%emt 00:00:11]} 38. Ba7 {[%clk 00:00:12]} {[%emt 00:00:07]}
Be5 {[%clk 00:00:25]} {[%emt 00:00:07]} 39. Re7 {[%clk 00:00:09]} {[%emt
00:00:08]} Bf4 {[%clk 00:00:28]} {[%emt 00:00:02]} 40. Rb7 {[%clk 00:00:08]}
{[%emt 00:00:05]} g4 {[%clk 00:00:26]} {[%emt 00:00:07]} 41. fxg4 {[%emt
00:00:47]} h3+ {[%emt 00:00:02]} 42. Kh1 {[%emt 00:00:01]} Rd1+ {[%emt
00:00:06]} 43. Kg2 {[%emt 00:00:05]} 0-1

[Event "MČR v rapid šachu družstev 2019"]
[Site "Teplice, Czech Republic"]
[Date "2019.09.15"]
[Round "7.23"]
[White "Chmel, Kristian"]
[Black "Sochor, Jiri"]
[Result "1-0"]
[TimeControl "15 min. + 5s"]
[WhiteElo "2129"]
[BlackElo "2249"]

1. e4 {[%clk 00:15:07]} {[%emt 00:00:02]} e5 {[%clk 00:15:08]} {[%emt
00:00:02]} 2. Nf3 {[%clk 00:15:11]} {[%emt 00:00:01]} Nc6 {[%clk 00:15:13]} 3.
d4 {[%clk 00:15:06]} {[%emt 00:00:11]} exd4 {[%clk 00:15:15]} {[%emt 00:00:03]}
4. Nxd4 {[%emt 00:00:02]} Bc5 5. Be3 {[%clk 00:15:11]} {[%emt 00:00:03]} Qf6
{[%clk 00:15:23]} {[%emt 00:00:01]} 6. c3 {[%clk 00:15:14]} {[%emt 00:00:02]}
Nge7 {[%clk 00:15:16]} {[%emt 00:00:12]} 7. g3 {[%clk 00:15:17]} {[%emt
00:00:03]} Nxd4 {[%clk 00:14:16]} {[%emt 00:01:05]} 8. cxd4 {[%clk 00:15:07]}
{[%emt 00:00:14]} Bb4+ {[%clk 00:14:20]} {[%emt 00:00:01]} 9. Nc3 {[%clk
00:15:09]} {[%emt 00:00:03]} Qc6 {[%clk 00:14:21]} {[%emt 00:00:04]} 10. Qc2
{[%clk 00:14:29]} {[%emt 00:00:45]} O-O {[%emt 00:00:36]} 11. Bg2 {[%clk
00:14:08]} {[%emt 00:00:18]} d5 {[%clk 00:13:41]} {[%emt 00:00:23]} 12. O-O
{[%clk 00:13:56]} {[%emt 00:00:17]} Bxc3 {[%clk 00:13:36]} {[%emt 00:00:10]} 13.
bxc3 {[%clk 00:13:58]} {[%emt 00:00:02]} h6 {[%clk 00:13:23]} {[%emt 00:00:18]}
14. exd5 {[%clk 00:13:54]} {[%emt 00:00:10]} Nxd5 {[%clk 00:13:26]} {[%emt
00:00:02]} 15. Qb3 {[%clk 00:13:45]} {[%emt 00:00:13]} Be6 {[%clk 00:10:11]}
{[%emt 00:03:20]} 16. c4 {[%clk 00:13:32]} {[%emt 00:00:19]} Nxe3 {[%clk
00:10:08]} {[%emt 00:00:07]} 17. Bxc6 {[%clk 00:12:28]} {[%emt 00:01:08]} Nxf1
{[%clk 00:10:11]} {[%emt 00:00:03]} 18. Bd5 {[%clk 00:12:21]} {[%emt 00:00:13]}
1-0

[Event "MČR v rapid šachu družstev 2019"]
[Site "Teplice, Czech Republic"]
[Date "2019.09.15"]
[Round "7.24"]
[White "Burgermeister, Michal"]
[Black "Routner, Jakub"]
[Result "1/2-1/2"]
[TimeControl "15 min. + 5s"]
[WhiteElo "1908"]
[BlackElo "2092"]

1. e4 {[%clk 00:15:06]} {[%emt 00:00:03]} c5 {[%clk 00:15:08]} {[%emt
00:00:03]} 2. Nc3 {[%clk 00:15:10]} {[%emt 00:00:02]} Nc6 {[%clk 00:15:10]}
{[%emt 00:00:03]} 3. g3 {[%clk 00:15:14]} g6 {[%clk 00:15:12]} {[%emt
00:00:03]} 4. Bg2 {[%clk 00:15:17]} {[%emt 00:00:01]} Bg7 {[%clk 00:15:15]}
{[%emt 00:00:01]} 5. d3 {[%clk 00:15:21]} d6 {[%clk 00:15:10]} {[%emt
00:00:11]} 6. Nge2 {[%clk 00:15:25]} {[%emt 00:00:01]} Rb8 {[%clk 00:15:11]}
{[%emt 00:00:04]} 7. O-O {[%clk 00:15:28]} {[%emt 00:00:02]} b5 {[%clk
00:15:13]} {[%emt 00:00:03]} 8. h3 {[%clk 00:14:36]} {[%emt 00:00:57]} b4
{[%clk 00:15:12]} {[%emt 00:00:06]} 9. Nd5 {[%clk 00:14:07]} {[%emt 00:00:34]}
e6 {[%clk 00:15:10]} {[%emt 00:00:07]} 10. Ne3 {[%clk 00:14:07]} {[%emt
00:00:04]} Nge7 {[%clk 00:15:11]} {[%emt 00:00:04]} 11. f4 {[%clk 00:13:41]}
{[%emt 00:00:32]} f5 {[%clk 00:15:07]} {[%emt 00:00:09]} 12. exf5 {[%clk
00:12:59]} {[%emt 00:00:47]} gxf5 {[%clk 00:15:08]} {[%emt 00:00:03]} 13. Nc4
{[%clk 00:11:36]} {[%emt 00:01:29]} O-O {[%clk 00:14:47]} {[%emt 00:00:25]} 14.
c3 {[%clk 00:10:22]} {[%emt 00:01:20]} bxc3 {[%clk 00:13:46]} {[%emt 00:01:06]}
15. bxc3 {[%clk 00:09:56]} {[%emt 00:00:31]} Nd5 {[%clk 00:13:46]} {[%emt
00:00:05]} 16. Qc2 {[%clk 00:08:55]} {[%emt 00:01:06]} Re8 {[%clk 00:13:29]}
{[%emt 00:00:22]} 17. Bd2 {[%clk 00:08:20]} {[%emt 00:00:40]} Qc7 {[%clk
00:12:47]} {[%emt 00:00:46]} 18. Rab1 {[%clk 00:07:40]} {[%emt 00:00:46]} Bd7
{[%clk 00:12:48]} {[%emt 00:00:04]} 19. g4 {[%clk 00:06:18]} {[%emt 00:01:27]}
Nb6 {[%clk 00:12:43]} {[%emt 00:00:09]} 20. Nxb6 {[%clk 00:05:39]} {[%emt
00:00:46]} axb6 {[%clk 00:12:45]} {[%emt 00:00:02]} 21. Ng3 {[%clk 00:05:02]}
{[%emt 00:00:43]} Ne7 {[%clk 00:11:29]} {[%emt 00:01:20]} 22. Nh5 {[%clk
00:04:38]} {[%emt 00:00:29]} Bh8 {[%clk 00:11:25]} {[%emt 00:00:09]} 23. Rbe1
{[%emt 00:01:22]} Nc6 {[%emt 00:00:05]} 24. c4 1/2-1/2